Cogmind - Beta 13 @@@ ROGUE MODE // 2024.04.05 @ 11:58:38 Player: Astrozal Result: Self-destructed Performance ------------- Evolutions (1) 500 Regions Visited (2) 400 Robots Destroyed (23) 115 Value Destroyed (512) 512 Prototype IDs (0) 0 Alien Tech Used (0) 0 Bonus (16) 16 TOTAL SCORE: 1543 Bonus ------- High Alert Combat Kills 16 Cogmind --------- Core Integrity 385/400 Matter 300/300 Energy 275/275 System Corruption 2% Temperature Cool (0) Movement Treading (145) Location -9/Materials Parts ------- > --- POWER (1) -------- Deuterium Engine > --- PROPULSION (2) --- Advanced Treads Advanced Treads > --- UTILITY (2) ------ Large Storage Unit Tractor Beam > --- WEAPON (4) ------- Assault Rifle Light Assault Rifle Light Cannon Light Cannon > --- INVENTORY (15) --- Ion Engine Ion Engine Deuterium Engine Deuterium Engine Deuterium Engine Light Treads Advanced Treads Advanced Treads Compact Wheel Medium Laser Light Assault Rifle Light Assault Rifle Shotgun Mining Claw Peak State ------------ > --- POWER ------------ Deuterium Engine > --- PROPULSION ------- Advanced Treads Advanced Treads > --- UTILITY ---------- Large Storage Unit Tractor Beam > --- WEAPON ----------- Assault Rifle Assault Rifle Light Assault Rifle Light Assault Rifle > --- INVENTORY -------- Ion Engine Ion Engine Deuterium Engine Deuterium Engine Deuterium Engine Light Treads Light Treads Compact Wheel Compact Wheel Compact Wheel Flight Unit Medium Laser Light Assault Rifle Light Assault Rifle Mining Claw [Rating: 17] Favorites ----------- Power Ion Engine Engine Ion Engine Propulsion Wheel Treads Advanced Treads Wheel Wheel Utility Tractor Beam Device Tractor Beam Storage Large Storage Unit Weapon Assault Rifle Ballistic Gun Assault Rifle Ballistic Cannon Light Cannon Build | -11 -10 -9 ------- Run | Yrd Mat Mat Slots Evolved 2 | . . 2 Power . | . . . Propulsion . | . . . Utility . | . . . Weapon 2 | . . 2 Parts Attached 20 | 5 7 8 Power 2 | . 1 1 Engine 2 | . 1 1 Core . | . . . Reactor . | . . . Propulsion 6 | 2 2 2 Treads 2 | . . 2 Leg . | . . . Wheel 4 | 2 2 . Hover . | . . . Flight . | . . . Utility 3 | 1 2 . Device 1 | . 1 . Storage 2 | 1 1 . Processor . | . . . Hackware . | . . . Protection . | . . . Artifact . | . . . Weapon 9 | 2 2 5 Energy Gun . | . . . Energy Cannon . | . . . Ballistic Gun 7 | 2 2 3 Ballistic Cannon 2 | . . 2 Launcher . | . . . Special Weapon . | . . . Impact Weapon . | . . . Slashing Weapon . | . . . Piercing Weapon . | . . . Special Melee Weapon . | . . . Unidentified Prototypes . | . . . Parts Lost 2 | . 1 1 Power . | . . . Propulsion 1 | . 1 . Utility . | . . . Weapon 1 | . . 1 Highest Loss Streak 1 | . 1 1 To Critical Strikes . | . . . Average Slot Usage (%) 93 | . 88 98 Engine 12 | . 13 11 Treads 8 | . . 19 Wheel 13 | . 23 2 Device 9 | . 8 11 Storage 12 | . 14 11 Ballistic Gun 33 | . 28 39 Ballistic Cannon 1 | . . 4 Naked Turns . | . . . Heaviest Build 39 | 8 30 39 Greatest Support 44 | 20 32 44 Greatest Overweight (x) 2 | 2 2 1 Average Overweight (x) . | . . . Largest Inventory Capacity 15 | 8 15 15 Average Capacity 11 | 7 10 15 Most Carried 15 | 6 15 15 Average Carried 9 | 3 8 13 Final Capacity 15 | 8 15 15 Final Carried 15 | 6 15 14 Class Distribution -------------------- 67% | Mutant 32% | Gunner Dominant Class ---------------- Mutant | -10/Materials Gunner | -9/Materials Resources | -11 -10 -9 ----------- Run | Yrd Mat Mat Matter Collected 657 | 270 182 205 Remotely 323 | . 118 205 Salvage Created 779 | 68 306 405 Parts 49 | 1 22 26 Haulers Intercepted . | . . . Recyclers Shooed . | . . . Parts Field Recycled . | . . . Retrieved Matter . | . . . Parts Self-Destructed . | . . . Prevented . | . . . Kills | -11 -10 -9 ------- Run | Yrd Mat Mat Combat Hostiles Destroyed 20 | . 10 10 Guns 18 | . 10 8 Cannons 2 | . . 2 Classes Destroyed 5 | 1 3 1 Worker 1 | . 1 . Recycler 2 | 1 . 1 Swarmer 9 | . 5 4 Grunt 9 | . 5 4 Sentry 2 | . . 2 Best Kill Streak 11 | 1 5 11 Combat Bots Only 10 | . 4 10 Max Kills in Single Turn 2 | 1 2 2 Gunslinging 1 | . . 1 Exploded . | . . . Melee . | . . . Uniques/NPCs Destroyed . | . . . Combat | -11 -10 -9 -------- Run | Yrd Mat Mat Hostile Shots Fired 83 | . 50 33 Missed 26 | . 18 8 Damage Taken 588 | 2 310 276 Core 94 | . 79 15 Absorbed by Shields . | . . . Core Remaining (%) 84 | 100 68 . Volleys Fired 48 | 5 24 19 Largest 4 | 2 2 4 Hottest 95 | 40 40 95 Shots Fired 131 | 10 48 73 Gun 127 | 10 48 69 Cannon 4 | . . 4 Launcher . | . . . Special . | . . . Kinetic 131 | 10 48 73 Thermal . | . . . Explosive . | . . . Electromagnetic . | . . . Robot Hit Streak 18 | 8 18 9 Robot Miss Streak 4 | 1 4 4 Penetration Max . | . . . Secondary Targets 4 | . 1 3 Max Gunslinging Chain 1 | . 1 1 Shots Hit Robots 83 | 9 33 41 Core Hits 39 | 3 19 17 Critical Kills . | . . . Critical Parts Destroyed . | . . . Critical Strikes . | . . . Melee Attacks . | . . . Impact . | . . . Slashing . | . . . Piercing . | . . . Sneak Attacks . | . . . Combat Hostiles . | . . . Follow-up Attacks . | . . . Damage Inflicted 902 | 98 389 415 Guns 811 | 93 386 332 Cannons 77 | . . 77 Explosions . | . . . Melee . | . . . Ramming 14 | 5 3 6 Kinetic 888 | 93 386 409 Thermal . | . . . Explosive . | . . . Electromagnetic . | . . . Impact . | . . . Slashing . | . . . Piercing . | . . . Highest Corruption 2 | . . 2 Average Corruption 1 | . . 1 Corruption Purged . | . . . Corruption Blocked . | . . . Effects 1 | . . 1 Energy Discharges 1 | . . 1 Overload Shots . | . . . Overflow Damage . | . . . Projectiles . | . . . Explosions . | . . . Melee . | . . . Knockbacks 1 | . . 1 Impact . | . . . Kinetic 1 | . . 1 Secondary . | . . . Self-Inflicted Damage 3 | 2 1 . Shots . | . . . Rammed 2 | 1 1 . Targets Rammed 3 | 1 1 1 Kicked . | . . . Crushed 1 | . . 1 Highest Temperature 216 | . 9 216 Average Temperature 79 | . 7 87 Received Heat Transfer 201 | . 69 132 Siege Activations . | . . . Robots Corrupted . | . . . Combat Hostiles . | . . . Parts Fried . | . . . Impact Corruptions . | . . . Robots Melted . | . . . Combat Hostiles . | . . . Parts Melted . | . . . Heat Transferred . | . . . Parts Sabotaged . | . . . Parts Stolen . | . . . Parts Stripped . | . . . Power Chain Reactions . | . . . Alert | -11 -10 -9 ------- Run | Yrd Mat Mat Peak Influence 441 | 5 359 441 Initial 151 | . 3 151 Average 174 | . 169 261 Maximum Alert Level 2 | . 1 2 Low Security (%) 61 | 100 59 46 Level 1 31 | . 40 33 Level 2 7 | . . 19 Level 3 . | . . . Level 4 . | . . . Level 5 . | . . . High Security . | . . . Max Security . | . . . Squads Dispatched 5 | . 2 3 Investigation . | . . . Extermination . | . . . Reinforcement 5 | . 2 3 Assault . | . . . Garrison . | . . . Intercept . | . . . Searches Triggered . | . . . Construction Impeded . | . . . Haulers Reinforced . | . . . Active Scanning Responses . | . . . Cargo Convoy Interrupts . | . . . Stealth | -11 -10 -9 --------- Run | Yrd Mat Mat Distress Signals 4 | . 2 2 Communications Jammed . | . . . Distress Signals . | . . . Times Spotted 34 | . 17 17 Peak Tracking Total 7 | . 7 5 Tactical Retreats 3 | . 2 1 Traps | -11 -10 -9 ------- Run | Yrd Mat Mat Traps Triggered 2 | . . 2 Indirectly . | . . . Trap Hack Attempts . | . . . Triggered . | . . . Disarmed . | . . . Reprogrammed . | . . . Reused . | . . . Traps Extracted . | . . . Installed . | . . . Triggered . | . . . Machines | -11 -10 -9 ---------- Run | Yrd Mat Mat Machines Disabled . | . . . Max in Single Turn . | . . . Machines Repaired . | . . . Machines Dismantled . | . . . Machines Sabotaged . | . . . Overloaded Fab Kills . | . . . Hacking | -11 -10 -9 --------- Run | Yrd Mat Mat Machines Accessed 1 | . 1 . Terminals . | . . . Fabricators . | . . . Repair Stations . | . . . Recycling Units 1 | . 1 . Scanalyzers . | . . . Garrison Access . | . . . Total Hacks 3 | . 3 . Successful 1 | . 1 . Failed 2 | . 2 . Catastrophic 1 | . 1 . Database Lockouts . | . . . Manual . | . . . Terminals . | . . . Fabricators . | . . . Repair Stations . | . . . Recycling Units 3 | . 3 . Scanalyzers . | . . . Garrison Access . | . . . Terminal Hacks . | . . . Fabricator Hacks . | . . . Repair Station Hacks . | . . . Recycling Unit Hacks 1 | . 1 . Report Inventory 1 | . 1 . Scanalyzer . | . . . Garrison Access Hacks . | . . . Unauthorized Hacks . | . . . Terminals . | . . . Fabricators . | . . . Repair Stations . | . . . Recycling Units . | . . . Scanalyzers . | . . . Garrison Access . | . . . Data Cores Recovered . | . . . Used . | . . . Hacking Detections 1 | . 1 . Full Trace Events . | . . . Feedback Events . | . . . Feedback Blocked . | . . . Robot Schematics Acquired . | . . . Robots Built . | . . . Authchips . | . . . Time . | . . . Total Robot Build Rating . | . . . Part Schematics Acquired . | . . . Parts Built . | . . . Authchips . | . . . Time . | . . . Total Part Build Rating . | . . . Parts Repaired . | . . . Time . | . . . Parts Recycled . | . . . Recycled Matter . | . . . Retrieved Matter . | . . . Retrieved Components . | . . . Parts Scanalyzed . | . . . Part Schematics Acquired . | . . . Parts Damaged . | . . . Bothacking | -11 -10 -9 ------------ Run | Yrd Mat Mat Used RIF Installer . | . . . Robots Hacked . | . . . Non-combat . | . . . Combat . | . . . Robot Hacks Applied . | . . . Relay Couplers Released . | . . . Fabnet Peak Effective % . | . . . Robots Rewired . | . . . Allies Hacked . | . . . Hacks Repelled . | . . . Allies | -11 -10 -9 -------- Run | Yrd Mat Mat Total Allies . | . . . Largest Group . | . . . Highest-Rated Group . | . . . Highest-Rated Ally . | . . . Total Orders . | . . . Ally Attacks . | . . . Total Damage . | . . . Kills . | . . . Allies Corrupted . | . . . Allies Melted . | . . . Intel | -11 -10 -9 ------- Run | Yrd Mat Mat Robot Analysis Total . | . . . Derelict Logs Recovered . | . . . Drone Launches . | . . . Drone Recoveries . | . . . Exploration | -11 -10 -9 ------------- Run | Yrd Mat Mat Turns Passed 560 | 99 254 207 Spaces Moved 357 | 84 184 89 Core 14 | 14 . . Treads 75 | . . 75 Legs . | . . . Wheels 268 | 70 184 14 Hover . | . . . Flight . | . . . Fastest Speed 50 | 50 80 100 Average Speed 100 | 84 88 139 Slowest Speed 225 | 150 110 225 Overloaded Moves . | . . . Propulsion Burnouts . | . . . Robots Hopped . | . . . Cave-ins Triggered . | . . . Exploration Rate (%) 15 | 4 32 11 Regions Visited 2 Branch Regions . Pre-discovered Areas . | . . . Known Exits Taken . | . . . Unknown Exits Taken 2 | 1 1 . Scrap Searched . | . . . Spaces Dug . | . . . Terrain Destroyed . | . . . Melee . | . . . Projectile . | . . . AOE . | . . . Terrain Rammed . | . . . Walls Destroyed . | . . . Machines Disabled . | . . . Actions | -11 -10 -9 --------- Run | Yrd Mat Mat Total 468 | 100 230 138 Wait . | . . . Move 356 | 84 183 89 Hop . | . . . Pick Up 25 | 6 11 8 Fast Attach 11 | 5 2 4 Attach 5 | . 2 3 Detach 2 | . . 2 Swap 4 | . 3 1 Drop 15 | . 4 11 Fire 48 | 5 24 19 Melee . | . . . Ram 1 | . 1 . Kick . | . . . Crush 1 | . . 1 Escape Stasis . | . . . Rewire . | . . . Trap . | . . . Miscellaneous . | . . . Route ------- -11/Scrapyard -10/Materials -9/Materials History --------- Turn | Location | Event 8 | -11/Scrapyard | Discovered new exit (range 16) 100 | -11/Scrapyard | Entered Materials 271 | -10/Materials | Discovered new exit (range 11) 302 | -10/Materials | Build established: Mutant 354 | -10/Materials | Entered another Materials area 354 | -9/Materials | Evolved 2 slots: Weapon x2 550 | -9/Materials | Destroyed 10 combat bots 561 | -9/Materials | Self-destructed Last Messages --------------- R-06 Scavenger collects Lgt. Armor Plating. Critical hit (Burn: +37). Acquired 6 matter. Y-45 Defender destroyed. Acquired 6 matter. W-16 Scout sends out distress signal. Dropped Lgt. Assault Rifle. Acquired Lgt. Cannon. G-34 Mercenary destroyed. Acquired 4 matter. G-34 Mercenary knocked back. G-34 Mercenary destroyed. Acquired 35 matter. Dropped Lgt. Assault Rifle. Acquired Lgt. Cannon. Acquired Shotgun. Acquired 17 matter. Dropped Com. Wheel. Dropped Flight Unit. Acquired Lgt. Treads. Map ----- +----------------------------------------------------+ | ????????????????????????# #### #?????????????? | | ????????????????????????# #??# #?????????????? | | ????????????????????????# #??# #?????????????? | | ????????????????????????# ^ #??# #?????????????? | | ????????????????????????# #??# ?????????????? | | ????????????????????????# #??# ????????????? | | ????????????????????????# #??# ???????????? | | ????????????????????????###*#??########??????????? | | ??????????????????????????#%#????????????????????? | | ??????????????????????????# #????????????????????? | | ??????????????????????????# #????????????????????? | | ??????????????????????????# #????????????????????? | | ??????????????????????????# #????????????????????? | | ??????????????????????????# #????????????????????? | | ??????????????????????????# #????????????????????? | | ??????????????????????????# #????????????????????? | | ??????????????????????????# #????????????????????? | | ?????????????????##########%############?????????? | | ?????????????????+ a a ??????? | | ?????????????????# [w#####?????????????? | | ?????????????????# u#?????????????????? | | ?????????????????+ ####??????????????? | | ?????????????????####### w## ########???????? | | ???????????????????????# # #???????? | | ???????????????????????# m # #???????? | | ???????????????# ### @ %# #???????? | | ???????????????# [ =%#=! #???????? | | ???????????????# %[ [ + = [ #???????? | | ???????????????# ! =*#= [ #???????? | | ???????????????# ##### # #???????? | | ???????????????######????# # #???????? | | ?????????????????????????# [*########/##???????? | | ?????????????????????????# =%#??????? #????????? | | ?????????????????????????# =!#????????#????????? | | ?????????????????????????# ?????????????????? | | ?????????????????????????# gg????????????????? | | ?????????????????????????# ????????????????? | | ?????????????????????????# ???????????????? | | ?????????????????????????####+## ???????????????? | | ???????????????????????????????? ????????????????? | | ?????????????????????????????????????????????????? | | ?????????????????????????????????????????????????? | | ?????????????????????????????????????????????????? | | ?????????????????????????????????????????????????? | | ?????????????????????????????????????????????????? | | ?????????????????????????????????????????????????? | | ?????????????????????????????????????????????????? | | ?????????????????????????????????????????????????? | | ?????????????????????????????????????????????????? | | ?????????????????????????????????????????????????? | +----------------------------------------------------+ Best States ------------- Heat Dissipation 28 Energy Generation 14 Energy Capacity 275 Matter Stores 300 Matter Capacity 300 Sight Range 16 Terrain Scan Density 10 Evasion (%) 44 Recoil Reduction 2 Item Schematics ----------------- None Robot Schematics ------------------ None Fabricated ------------ Nothing Alien Tech Used ----------------- None Achievements -------------- None Challenges ------------ None Game ------ Seed ProtonAerolevInjector Manual? 0 Play Time 00:10:13 Cumulative 8.7 hours Start 2024.04.05 @ 11:48:30 End 2024.04.05 @ 11:58:38 Sessions 1 Manual Loads 0 Difficulty Rogue Special Mode None Game No. 15 Rogue 15 Adventurer 0 Explorer 0 Win Type - Total 0 Types 0/0/0/0/0/0/0/0/0 Lore% 6 Gallery% 14 Achievement% 14 Wizard Run 0 Options --------- Layout 1 ASCII 1 Keyboard 0 Movement Arrows Keybinds 0 Fullscreen 1 Font 16/Terminus Map View 50x40 Zoom Use 0% Tactical HUD 0 Map Filters NONE Filters NONE Steam SD RUN: c4305474-cea3-40cf-9257-537142e70125